[Event "Early-Titled-Tuesday-Blitz-July-09-2024"]
[Site "Chess.com"]
[Date "2024.07.09"]
[Round "9"]
[White "Crazy_girl99"]
[Black "Andrei_Skvortsov"]
[Result "1-0"]
[WhiteElo "2663"]
[BlackElo "2794"]
[TimeControl "180+1"]
[EndTime "9:45:44 PDT"]
[Termination "Crazy_girl99 won by resignation"]

1. e4 {[%clk 0:02:59.1]} 1... d5 {[%clk 0:02:58.1]} 2. exd5 {[%clk 0:02:58.9]}
2... Qxd5 {[%clk 0:02:56.5]} 3. Nc3 {[%clk 0:02:59]} 3... Qe5+ {[%clk
0:02:56.9]} 4. Be2 {[%clk 0:02:58.9]} 4... Bg4 {[%clk 0:02:57.3]} 5. f3 {[%clk
0:02:57.5]} 5... Bf5 {[%clk 0:02:55.9]} 6. d4 {[%clk 0:02:57.7]} 6... Qa5 {[%clk
0:02:56.1]} 7. Bd2 {[%clk 0:02:56.7]} 7... c6 {[%clk 0:02:53.3]} 8. Bc4 {[%clk
0:02:56.6]} 8... Qb6 {[%clk 0:02:47.4]} 9. Nge2 {[%clk 0:02:55.9]} 9... Nf6
{[%clk 0:02:44.5]} 10. Na4 {[%clk 0:02:49]} 10... Qd8 {[%clk 0:02:42.4]} 11. Nc5
{[%clk 0:02:47.5]} 11... b6 {[%clk 0:02:40.3]} 12. Bd3 {[%clk 0:02:45.7]} 12...
bxc5 {[%clk 0:02:22.6]} 13. Bxf5 {[%clk 0:02:45]} 13... cxd4 {[%clk 0:02:23]}
14. O-O {[%clk 0:02:40.7]} 14... e6 {[%clk 0:02:21.9]} 15. Bd3 {[%clk
0:02:40.6]} 15... Bc5 {[%clk 0:02:21.3]} 16. Bg5 {[%clk 0:02:37.6]} 16... h6
{[%clk 0:02:19.9]} 17. Bh4 {[%clk 0:02:37.4]} 17... Nbd7 {[%clk 0:02:18.2]} 18.
Bf2 {[%clk 0:02:29.1]} 18... Qb6 {[%clk 0:02:16.2]} 19. Rb1 {[%clk 0:02:28.1]}
19... Nd5 {[%clk 0:02:15.8]} 20. Qd2 {[%clk 0:02:24.7]} 20... Ne3 {[%clk
0:02:12.3]} 21. Rfe1 {[%clk 0:02:20.9]} 21... e5 {[%clk 0:02:02.8]} 22. b4
{[%clk 0:02:18.2]} 22... Be7 {[%clk 0:02:00]} 23. f4 {[%clk 0:02:11.6]} 23...
Ng4 {[%clk 0:01:52]} 24. Bg3 {[%clk 0:02:06]} 24... O-O {[%clk 0:01:48.9]} 25.
Bf5 {[%clk 0:01:54]} 25... d3+ {[%clk 0:01:31]} 26. Kh1 {[%clk 0:01:53.7]} 26...
dxe2 {[%clk 0:01:27.2]} 27. Qxd7 {[%clk 0:01:51.1]} 27... Ne3 {[%clk 0:01:20.7]}
28. Bf2 {[%clk 0:01:39.9]} 28... exf4 {[%clk 0:01:15.6]} 29. Qxe7 {[%clk
0:01:34.3]} 29... Nxf5 {[%clk 0:01:14.7]} 30. Qxf8+ {[%clk 0:01:34.1]} 30...
Kxf8 {[%clk 0:01:12]} 31. Bxb6 {[%clk 0:01:33.8]} 31... axb6 {[%clk 0:01:12.9]}
32. Rxe2 {[%clk 0:01:33.8]} 32... Rxa2 {[%clk 0:01:13]} 33. Rd1 {[%clk
0:01:31.2]} 33... Ne3 {[%clk 0:01:03.5]} 34. Rc1 {[%clk 0:01:24.1]} 34... Nd5
{[%clk 0:00:58.5]} 35. Re4 {[%clk 0:01:21.2]} 35... g5 {[%clk 0:00:56.6]} 36.
Rc4 {[%clk 0:01:19.5]} 36... Ne7 {[%clk 0:00:53.6]} 37. g3 {[%clk 0:01:13.7]}
37... b5 {[%clk 0:00:51.1]} 38. Re4 {[%clk 0:00:58.4]} 38... fxg3 {[%clk
0:00:50.9]} 39. hxg3 {[%clk 0:00:59.3]} 39... Ra3 {[%clk 0:00:49.2]} 40. Kh2
{[%clk 0:00:58]} 40... Nf5 {[%clk 0:00:48.6]} 41. g4 {[%clk 0:00:49.5]} 41...
Nd6 {[%clk 0:00:48]} 42. Rd4 {[%clk 0:00:47.9]} 42... Nc4 {[%clk 0:00:48.4]} 43.
Rf1 {[%clk 0:00:47.8]} 43... Rc3 {[%clk 0:00:43.5]} 44. Rf2 {[%clk 0:00:47.4]}
44... Kg7 {[%clk 0:00:37.7]} 45. Re4 {[%clk 0:00:41.7]} 45... Nd6 {[%clk
0:00:32.2]} 46. Re7 {[%clk 0:00:38.9]} 46... Rc4 {[%clk 0:00:22.7]} 47. Rd7
{[%clk 0:00:38.7]} 47... Rd4 {[%clk 0:00:23.2]} 48. Rfxf7+ {[%clk 0:00:38]}
48... Kg6 {[%clk 0:00:21.7]} 49. Rf2 {[%clk 0:00:33.2]} 49... Rd5 {[%clk
0:00:21.1]} 50. Re2 {[%clk 0:00:28.2]} 50... Kf6 {[%clk 0:00:20.5]} 51. Rh7
{[%clk 0:00:28.2]} 51... Nf7 {[%clk 0:00:20]} 52. Rf2+ {[%clk 0:00:28.1]} 52...
Kg6 {[%clk 0:00:20.3]} 53. Rhxf7 {[%clk 0:00:28]} 1-0

[Event "Early-Titled-Tuesday-Blitz-July-09-2024"]
[Site "Chess.com"]
[Date "2024.07.09"]
[Round "9"]
[White "nindjaxx8"]
[Black "Aggressus"]
[Result "0-1"]
[WhiteElo "2691"]
[BlackElo "2583"]
[TimeControl "180+1"]
[EndTime "9:45:44 PDT"]
[Termination "Aggressus won by resignation"]

1. d4 {[%clk 0:03:00.9]} 1... g6 {[%clk 0:02:59.4]} 2. c4 {[%clk 0:02:57.3]}
2... Nf6 {[%clk 0:02:59.3]} 3. Nc3 {[%clk 0:02:54.8]} 3... d5 {[%clk 0:02:58.8]}
4. cxd5 {[%clk 0:02:51.7]} 4... Nxd5 {[%clk 0:02:59.7]} 5. e4 {[%clk 0:02:51.4]}
5... Nxc3 {[%clk 0:02:59.9]} 6. bxc3 {[%clk 0:02:51.6]} 6... Bg7 {[%clk
0:03:00.8]} 7. Nf3 {[%clk 0:02:51.6]} 7... O-O {[%clk 0:03:01.3]} 8. Be3 {[%clk
0:02:49.2]} 8... c5 {[%clk 0:03:01.6]} 9. Rc1 {[%clk 0:02:48.8]} 9... cxd4
{[%clk 0:02:53.7]} 10. cxd4 {[%clk 0:02:47.7]} 10... Qa5+ {[%clk 0:02:54.2]} 11.
Bd2 {[%clk 0:02:43.5]} 11... Qxa2 {[%clk 0:02:38.1]} 12. Bc4 {[%clk 0:02:42]}
12... Qa3 {[%clk 0:02:38.2]} 13. O-O {[%clk 0:02:41]} 13... Bg4 {[%clk
0:02:35.5]} 14. e5 {[%clk 0:02:18.5]} 14... Bxf3 {[%clk 0:02:06.4]} 15. gxf3
{[%clk 0:02:04.3]} 15... Nc6 {[%clk 0:02:04.8]} 16. Be3 {[%clk 0:02:03.5]} 16...
Rad8 {[%clk 0:01:50.9]} 17. f4 {[%clk 0:02:03.3]} 17... e6 {[%clk 0:01:31]} 18.
Qd2 {[%clk 0:01:47]} 18... Rd7 {[%clk 0:01:29]} 19. Rfd1 {[%clk 0:01:46.6]}
19... Rfd8 {[%clk 0:01:29.3]} 20. Rb1 {[%clk 0:00:30.4]} 20... a6 {[%clk
0:01:19.5]} 21. Qc2 {[%clk 0:00:14.8]} 21... Nxd4 {[%clk 0:01:05.6]} 22. Bxd4
{[%clk 0:00:15.7]} 22... Rxd4 {[%clk 0:01:05.7]} 23. Rxd4 {[%clk 0:00:16.3]}
23... Rxd4 {[%clk 0:01:05.9]} 24. Rxb7 {[%clk 0:00:16.7]} 24... Bh6 {[%clk
0:00:49.2]} 25. Rb8+ {[%clk 0:00:15.8]} 25... Kg7 {[%clk 0:00:49.1]} 26. Be2
{[%clk 0:00:11.8]} 26... Bxf4 {[%clk 0:00:25.4]} 27. Qc8 {[%clk 0:00:11.7]}
27... Kh6 {[%clk 0:00:20.7]} 28. Qb7 {[%clk 0:00:04.7]} 28... Rd2 {[%clk
0:00:19.9]} 29. Qe4 {[%clk 0:00:04.2]} 29... Qa1+ {[%clk 0:00:17.7]} 30. Kg2
{[%clk 0:00:04.4]} 30... Qxe5 {[%clk 0:00:18.4]} 31. Qf3 {[%clk 0:00:02.8]}
31... Rxe2 {[%clk 0:00:16.9]} 32. Qh3+ {[%clk 0:00:02.8]} 32... Kg7 {[%clk
0:00:16.3]} 33. Rb7 {[%clk 0:00:03.7]} 33... h5 {[%clk 0:00:15.4]} 34. Qb3
{[%clk 0:00:03.1]} 34... Be3 {[%clk 0:00:13.8]} 35. Qb2 {[%clk 0:00:01]} 35...
Qxb2 {[%clk 0:00:12.8]} 0-1

[Event "Early-Titled-Tuesday-Blitz-July-09-2024"]
[Site "Chess.com"]
[Date "2024.07.09"]
[Round "9"]
[White "NM_Antelacus"]
[Black "LewAnatol"]
[Result "1-0"]
[WhiteElo "2288"]
[BlackElo "2172"]
[TimeControl "180+1"]
[EndTime "9:45:46 PDT"]
[Termination "NM_Antelacus won on time"]

1. e4 {[%clk 0:03:00.9]} 1... c5 {[%clk 0:03:00.1]} 2. Nf3 {[%clk 0:03:00.7]}
2... e6 {[%clk 0:03:00.6]} 3. c3 {[%clk 0:02:59.2]} 3... Nf6 {[%clk 0:02:59.8]}
4. Bd3 {[%clk 0:02:55.9]} 4... c4 {[%clk 0:02:54.4]} 5. Bc2 {[%clk 0:02:54.3]}
5... d5 {[%clk 0:02:36.9]} 6. e5 {[%clk 0:02:53.4]} 6... Nfd7 {[%clk 0:02:29.5]}
7. d4 {[%clk 0:02:52.5]} 7... cxd3 {[%clk 0:02:28.8]} 8. Bxd3 {[%clk 0:02:52.4]}
8... Nc6 {[%clk 0:02:29]} 9. Bf4 {[%clk 0:02:51]} 9... Be7 {[%clk 0:02:20.9]}
10. O-O {[%clk 0:02:50.3]} 10... g5 {[%clk 0:02:17.7]} 11. Bg3 {[%clk 0:02:35]}
11... g4 {[%clk 0:02:17.4]} 12. Nd4 {[%clk 0:02:30.7]} 12... Ncxe5 {[%clk
0:01:56.2]} 13. Bb5 {[%clk 0:02:21.2]} 13... Ng6 {[%clk 0:01:43.3]} 14. Qxg4
{[%clk 0:02:16.9]} 14... a6 {[%clk 0:01:34.9]} 15. Ba4 {[%clk 0:02:11.1]} 15...
h5 {[%clk 0:01:24.6]} 16. Qf3 {[%clk 0:01:46.1]} 16... h4 {[%clk 0:00:43.5]} 17.
Bf4 {[%clk 0:01:42.8]} 17... b5 {[%clk 0:00:28.4]} 18. Nc6 {[%clk 0:01:39.1]}
18... Qb6 {[%clk 0:00:24.4]} 19. Nxe7 {[%clk 0:01:37.1]} 19... Nxe7 {[%clk
0:00:19.5]} 20. Bc2 {[%clk 0:01:34.4]} 20... Bb7 {[%clk 0:00:18.8]} 21. Qe2
{[%clk 0:01:27.5]} 21... O-O-O {[%clk 0:00:17]} 22. Be3 {[%clk 0:01:25.5]} 22...
Qc7 {[%clk 0:00:16.3]} 23. Nd2 {[%clk 0:01:23.5]} 23... Rdg8 {[%clk 0:00:15.4]}
24. Nf3 {[%clk 0:01:19.7]} 24... Nf6 {[%clk 0:00:14.2]} 25. h3 {[%clk
0:00:58.4]} 25... Ng6 {[%clk 0:00:13.4]} 26. b3 {[%clk 0:00:47.2]} 26... Nf4
{[%clk 0:00:13]} 27. Bxf4 {[%clk 0:00:46.5]} 27... Qxf4 {[%clk 0:00:12.6]} 28.
Qe3 {[%clk 0:00:38]} 28... Qd6 {[%clk 0:00:07.5]} 29. Qe5 {[%clk 0:00:31.5]}
29... Qd8 {[%clk 0:00:06.3]} 30. Nd4 {[%clk 0:00:25.9]} 30... Rh5 {[%clk
0:00:06]} 31. Qe2 {[%clk 0:00:24.5]} 31... Rhg5 {[%clk 0:00:05.5]} 32. f3 {[%clk
0:00:20]} 32... Rxg2+ {[%clk 0:00:05]} 33. Qxg2 {[%clk 0:00:20.1]} 33... Rxg2+
{[%clk 0:00:05.4]} 34. Kxg2 {[%clk 0:00:20.9]} 34... Nh5 {[%clk 0:00:05.5]} 35.
Ne2 {[%clk 0:00:19.3]} 35... Qg5+ {[%clk 0:00:05.3]} 36. Kf2 {[%clk 0:00:17.9]}
36... Ng3 {[%clk 0:00:04.3]} 37. Rg1 {[%clk 0:00:16.8]} 37... Qd2 {[%clk
0:00:03]} 38. Bd1 {[%clk 0:00:14.9]} 38... d4 {[%clk 0:00:01]} 39. cxd4 {[%clk
0:00:14.2]} 1-0

[Event "Early-Titled-Tuesday-Blitz-July-09-2024"]
[Site "Chess.com"]
[Date "2024.07.09"]
[Round "9"]
[White "nj123456"]
[Black "AcostaPablo"]
[Result "0-1"]
[WhiteElo "2528"]
[BlackElo "2701"]
[TimeControl "180+1"]
[EndTime "9:45:47 PDT"]
[Termination "AcostaPablo won on time"]

1. e4 {[%clk 0:03:00.9]} 1... e6 {[%clk 0:02:58.1]} 2. d4 {[%clk 0:03:00.5]}
2... d5 {[%clk 0:02:55.6]} 3. Nd2 {[%clk 0:03:00.1]} 3... c5 {[%clk 0:02:54.4]}
4. exd5 {[%clk 0:02:59.6]} 4... Qxd5 {[%clk 0:02:51.9]} 5. Ngf3 {[%clk
0:02:59.7]} 5... cxd4 {[%clk 0:02:48.7]} 6. Bc4 {[%clk 0:03:00.1]} 6... Qd6
{[%clk 0:02:49]} 7. O-O {[%clk 0:03:00.6]} 7... Nf6 {[%clk 0:02:48.2]} 8. Nb3
{[%clk 0:03:00.9]} 8... Nc6 {[%clk 0:02:48.1]} 9. Nbxd4 {[%clk 0:03:01.1]} 9...
Nxd4 {[%clk 0:02:48.3]} 10. Nxd4 {[%clk 0:03:02]} 10... Be7 {[%clk 0:02:43.3]}
11. c3 {[%clk 0:02:58]} 11... O-O {[%clk 0:02:40.2]} 12. Qf3 {[%clk 0:02:53.8]}
12... Qc7 {[%clk 0:02:30.3]} 13. Bb3 {[%clk 0:02:53.5]} 13... a5 {[%clk
0:02:29.8]} 14. a4 {[%clk 0:02:48.9]} 14... Bd7 {[%clk 0:02:23.2]} 15. Bg5
{[%clk 0:02:43]} 15... h6 {[%clk 0:02:06.3]} 16. Bh4 {[%clk 0:02:43]} 16... Bc6
{[%clk 0:02:04.1]} 17. Nxc6 {[%clk 0:02:41.8]} 17... Qxc6 {[%clk 0:02:03]} 18.
Qxc6 {[%clk 0:02:40.4]} 18... bxc6 {[%clk 0:02:03.4]} 19. Bc4 {[%clk 0:02:38.8]}
19... Rfd8 {[%clk 0:02:00.2]} 20. Rfd1 {[%clk 0:02:35.7]} 20... Rab8 {[%clk
0:01:59]} 21. b3 {[%clk 0:02:33.8]} 21... Bd6 {[%clk 0:01:41.9]} 22. Rd3 {[%clk
0:01:56.5]} 22... g5 {[%clk 0:01:33.6]} 23. Rad1 {[%clk 0:01:29.6]} 23... Nd5
{[%clk 0:00:46.4]} 24. Bg3 {[%clk 0:01:28.4]} 24... Bxg3 {[%clk 0:00:46.2]} 25.
hxg3 {[%clk 0:01:27.5]} 25... Kf8 {[%clk 0:00:46.1]} 26. Kf1 {[%clk 0:01:17.3]}
26... Ke7 {[%clk 0:00:46.4]} 27. Ke2 {[%clk 0:01:17.5]} 27... h5 {[%clk
0:00:45.8]} 28. Rh1 {[%clk 0:01:13.3]} 28... Rh8 {[%clk 0:00:45.4]} 29. Kd2
{[%clk 0:01:07.2]} 29... Nb6 {[%clk 0:00:45.3]} 30. Ba6 {[%clk 0:00:54.2]} 30...
Nd7 {[%clk 0:00:40.4]} 31. Bc4 {[%clk 0:00:19.4]} 31... Nc5 {[%clk 0:00:37.1]}
32. Rd4 {[%clk 0:00:14.7]} 32... e5 {[%clk 0:00:33.1]} 33. Rd3 {[%clk
0:00:07.7]} 33... Nxd3 {[%clk 0:00:32.3]} 34. Kxd3 {[%clk 0:00:08.6]} 34... f5
{[%clk 0:00:30.9]} 35. Ke3 {[%clk 0:00:08.5]} 35... h4 {[%clk 0:00:30.5]} 36.
gxh4 {[%clk 0:00:07.5]} 36... Rxh4 {[%clk 0:00:30.4]} 37. Re1 {[%clk 0:00:08]}
37... Re4+ {[%clk 0:00:30.5]} 38. Kd2 {[%clk 0:00:07.5]} 38... Rxe1 {[%clk
0:00:31.1]} 39. Kxe1 {[%clk 0:00:07.4]} 39... Rh8 {[%clk 0:00:30.1]} 40. Ke2
{[%clk 0:00:06.9]} 40... c5 {[%clk 0:00:29.3]} 41. Kf3 {[%clk 0:00:05.6]} 41...
Rh1 {[%clk 0:00:28.9]} 42. g4 {[%clk 0:00:05.1]} 42... Rh3+ {[%clk 0:00:23.4]}
43. Kg2 {[%clk 0:00:02.5]} 43... fxg4 {[%clk 0:00:23.7]} 0-1

[Event "Early-Titled-Tuesday-Blitz-July-09-2024"]
[Site "Chess.com"]
[Date "2024.07.09"]
[Round "9"]
[White "MarijaKuznecova"]
[Black "Bilan_Danila"]
[Result "1-0"]
[WhiteElo "2455"]
[BlackElo "2581"]
[TimeControl "180+1"]
[EndTime "9:45:47 PDT"]
[Termination "MarijaKuznecova won by resignation"]

1. e4 {[%clk 0:03:00.9]} 1... c6 {[%clk 0:02:56.4]} 2. d4 {[%clk 0:03:00.4]}
2... d5 {[%clk 0:02:56.2]} 3. e5 {[%clk 0:03:00.7]} 3... c5 {[%clk 0:02:53.4]}
4. dxc5 {[%clk 0:02:59.6]} 4... e6 {[%clk 0:02:53.2]} 5. a3 {[%clk 0:02:59.9]}
5... Bxc5 {[%clk 0:02:53]} 6. b4 {[%clk 0:02:59.6]} 6... Bb6 {[%clk 0:02:53.9]}
7. Bb2 {[%clk 0:02:59.9]} 7... a5 {[%clk 0:02:53]} 8. b5 {[%clk 0:02:56.3]} 8...
a4 {[%clk 0:02:53.3]} 9. Qg4 {[%clk 0:02:53.7]} 9... Kf8 {[%clk 0:02:38.2]} 10.
Nf3 {[%clk 0:02:48.3]} 10... Ne7 {[%clk 0:02:34.1]} 11. Nbd2 {[%clk 0:02:46.2]}
11... h5 {[%clk 0:02:29]} 12. Qb4 {[%clk 0:02:29.5]} 12... Nd7 {[%clk
0:02:21.3]} 13. Bd3 {[%clk 0:02:26.1]} 13... Nc5 {[%clk 0:02:09.4]} 14. O-O
{[%clk 0:02:22.4]} 14... Nxd3 {[%clk 0:02:09.5]} 15. cxd3 {[%clk 0:02:23.3]}
15... Bd7 {[%clk 0:01:59.5]} 16. Bd4 {[%clk 0:01:59.7]} 16... Ba5 {[%clk
0:01:25.9]} 17. Qb2 {[%clk 0:01:56.7]} 17... Nf5 {[%clk 0:01:24.5]} 18. Bc5+
{[%clk 0:01:53.4]} 18... Kg8 {[%clk 0:01:23.9]} 19. Rab1 {[%clk 0:01:35.8]}
19... b6 {[%clk 0:01:07.1]} 20. Be3 {[%clk 0:01:34.7]} 20... Rc8 {[%clk
0:00:54.2]} 21. Rbc1 {[%clk 0:01:18.6]} 21... Kh7 {[%clk 0:00:43.5]} 22. Ng5+
{[%clk 0:01:12.2]} 22... Kg6 {[%clk 0:00:43.2]} 23. Ndf3 {[%clk 0:01:08.3]}
23... Qe7 {[%clk 0:00:28.4]} 24. Nh3 {[%clk 0:00:50.5]} 24... f6 {[%clk
0:00:22.7]} 25. Nf4+ {[%clk 0:00:47.4]} 25... Kf7 {[%clk 0:00:22.7]} 26. Nd4
{[%clk 0:00:38.1]} 26... Nxd4 {[%clk 0:00:06.5]} 27. Bxd4 {[%clk 0:00:37.9]}
27... f5 {[%clk 0:00:07]} 28. Ne2 {[%clk 0:00:30.3]} 28... h4 {[%clk 0:00:04.2]}
29. f4 {[%clk 0:00:29]} 29... h3 {[%clk 0:00:04]} 30. g3 {[%clk 0:00:29.6]}
30... Rhd8 {[%clk 0:00:02.1]} 31. Nc3 {[%clk 0:00:25.2]} 31... Qe8 {[%clk
0:00:02.3]} 32. Nxa4 {[%clk 0:00:21.1]} 32... Bxb5 {[%clk 0:00:02.5]} 33. Nxb6
{[%clk 0:00:21.5]} 33... Bxb6 {[%clk 0:00:02.7]} 34. Bxb6 {[%clk 0:00:21.3]}
34... Rxc1 {[%clk 0:00:03.4]} 35. Rxc1 {[%clk 0:00:20.6]} 35... Rb8 {[%clk
0:00:04]} 36. Bc7 {[%clk 0:00:19.4]} 36... Rb7 {[%clk 0:00:04]} 37. Qc3 {[%clk
0:00:19.3]} 37... Qa8 {[%clk 0:00:02.5]} 38. Bd6 {[%clk 0:00:19.1]} 38... Qa6
{[%clk 0:00:02.8]} 39. Qc8 {[%clk 0:00:18.9]} 39... Kg6 {[%clk 0:00:02.7]} 40.
Qxe6+ {[%clk 0:00:18.2]} 40... Kh7 {[%clk 0:00:02.6]} 41. Qxf5+ {[%clk
0:00:18.6]} 41... Kg8 {[%clk 0:00:03.2]} 42. Rc8+ {[%clk 0:00:18.6]} 1-0

[Event "Early-Titled-Tuesday-Blitz-July-09-2024"]
[Site "Chess.com"]
[Date "2024.07.09"]
[Round "9"]
[White "KVAIDAN"]
[Black "IMGC"]
[Result "0-1"]
[WhiteElo "2326"]
[BlackElo "2467"]
[TimeControl "180+1"]
[EndTime "9:45:47 PDT"]
[Termination "IMGC won by checkmate"]

1. f4 {[%clk 0:03:00.1]} 1... d5 {[%clk 0:02:55.9]} 2. Nf3 {[%clk 0:03:00.4]}
2... c6 {[%clk 0:02:56.5]} 3. e3 {[%clk 0:03:00.5]} 3... Bg4 {[%clk 0:02:56.2]}
4. h3 {[%clk 0:02:59.9]} 4... Bxf3 {[%clk 0:02:54.8]} 5. Qxf3 {[%clk 0:03:00.3]}
5... Nd7 {[%clk 0:02:54.1]} 6. c4 {[%clk 0:02:59.6]} 6... Ngf6 {[%clk
0:02:37.8]} 7. Nc3 {[%clk 0:02:59.3]} 7... e6 {[%clk 0:02:31.4]} 8. Be2 {[%clk
0:02:56.8]} 8... Bb4 {[%clk 0:02:25.2]} 9. O-O {[%clk 0:02:56.5]} 9... O-O
{[%clk 0:02:25]} 10. d3 {[%clk 0:02:42.9]} 10... Re8 {[%clk 0:02:21]} 11. Bd2
{[%clk 0:02:41.9]} 11... dxc4 {[%clk 0:02:16.3]} 12. dxc4 {[%clk 0:02:39.9]}
12... e5 {[%clk 0:02:15.6]} 13. Rad1 {[%clk 0:02:35.2]} 13... e4 {[%clk
0:02:11.7]} 14. Nxe4 {[%clk 0:02:25.7]} 14... Bxd2 {[%clk 0:01:39.2]} 15. Nxd2
{[%clk 0:02:24.8]} 15... Qb6 {[%clk 0:01:38.7]} 16. Kh1 {[%clk 0:02:13.7]} 16...
Rxe3 {[%clk 0:01:35.9]} 17. Qf2 {[%clk 0:02:13.5]} 17... Rae8 {[%clk 0:01:36.5]}
18. Bf3 {[%clk 0:02:09.3]} 18... Qxb2 {[%clk 0:01:31.7]} 19. Rb1 {[%clk
0:02:07.8]} 19... Qxa2 {[%clk 0:01:18.1]} 20. Rxb7 {[%clk 0:02:07.8]} 20... Nc5
{[%clk 0:01:14.8]} 21. Rb8 {[%clk 0:01:53.3]} 21... Rxb8 {[%clk 0:00:32.1]} 22.
Qxe3 {[%clk 0:01:52.7]} 22... Qa5 {[%clk 0:00:32.7]} 23. Bxc6 {[%clk 0:01:40]}
23... h5 {[%clk 0:00:31.6]} 24. Bd5 {[%clk 0:01:34.7]} 24... Re8 {[%clk
0:00:28.2]} 25. Qd4 {[%clk 0:01:29.4]} 25... Qc7 {[%clk 0:00:24.2]} 26. Nf3
{[%clk 0:01:27.4]} 26... Nce4 {[%clk 0:00:23.2]} 27. Ng5 {[%clk 0:01:20.1]}
27... Ng3+ {[%clk 0:00:20.6]} 28. Kg1 {[%clk 0:01:20.6]} 28... Ne2+ {[%clk
0:00:20.2]} 29. Kh1 {[%clk 0:01:12.7]} 29... Nxd4 {[%clk 0:00:21.1]} 30. Bxf7+
{[%clk 0:01:11.1]} 30... Kf8 {[%clk 0:00:20.4]} 31. Bg6 {[%clk 0:01:10.2]} 31...
Re2 {[%clk 0:00:16.2]} 32. Rg1 {[%clk 0:01:08.5]} 32... Qc6 {[%clk 0:00:15.7]}
33. f5 {[%clk 0:01:07.6]} 33... h4 {[%clk 0:00:12.7]} 34. Ne6+ {[%clk
0:01:02.8]} 34... Nxe6 {[%clk 0:00:11.8]} 35. fxe6 {[%clk 0:01:03.5]} 35... Ke7
{[%clk 0:00:10.2]} 36. Bf5 {[%clk 0:01:04.4]} 36... Nh5 {[%clk 0:00:09.1]} 37.
Bg4 {[%clk 0:01:02.2]} 37... Ng3+ {[%clk 0:00:09.6]} 38. Kh2 {[%clk 0:01:02]}
38... Qd6 {[%clk 0:00:08.6]} 39. Rb1 {[%clk 0:00:56.8]} 39... Ne4+ {[%clk
0:00:04.6]} 40. Kg1 {[%clk 0:00:55]} 40... Qd4+ {[%clk 0:00:04.2]} 41. Kh1
{[%clk 0:00:55.4]} 41... Ng3+ {[%clk 0:00:04]} 42. Kh2 {[%clk 0:00:55]} 42...
Rxg2+ {[%clk 0:00:03.9]} 43. Kxg2 {[%clk 0:00:54.9]} 43... Qe4+ {[%clk
0:00:04.8]} 44. Kf2 {[%clk 0:00:54.9]} 44... Qxb1 {[%clk 0:00:05.7]} 45. Bf3
{[%clk 0:00:55.4]} 45... Qb2+ {[%clk 0:00:06.4]} 46. Ke3 {[%clk 0:00:55.9]}
46... Qb4 {[%clk 0:00:06.9]} 47. Kf4 {[%clk 0:00:56.4]} 47... Qb6 {[%clk
0:00:07.4]} 48. Kg4 {[%clk 0:00:56.6]} 48... Qc5 {[%clk 0:00:08.3]} 49. Kxh4
{[%clk 0:00:57]} 49... Nf5+ {[%clk 0:00:07.5]} 50. Kg4 {[%clk 0:00:54.6]} 50...
Nd6 {[%clk 0:00:08.4]} 51. Bd5 {[%clk 0:00:54.6]} 51... a5 {[%clk 0:00:09.3]}
52. h4 {[%clk 0:00:54.5]} 52... a4 {[%clk 0:00:10.2]} 53. h5 {[%clk 0:00:55.3]}
53... a3 {[%clk 0:00:10]} 54. Kg5 {[%clk 0:00:56.2]} 54... a2 {[%clk 0:00:08.8]}
55. Kg6 {[%clk 0:00:57.1]} 55... a1=Q {[%clk 0:00:09.1]} 56. Kh7 {[%clk
0:00:57.1]} 56... Qf6 {[%clk 0:00:10]} 57. Kg8 {[%clk 0:00:52.2]} 57... Qh6
{[%clk 0:00:10.7]} 58. Be4 {[%clk 0:00:51.2]} 58... Qc8# {[%clk 0:00:10.7]} 0-1

[Event "Early-Titled-Tuesday-Blitz-July-09-2024"]
[Site "Chess.com"]
[Date "2024.07.09"]
[Round "9"]
[White "amelia91"]
[Black "McCarthyStone"]
[Result "0-1"]
[WhiteElo "2095"]
[BlackElo "2496"]
[TimeControl "180+1"]
[EndTime "9:45:49 PDT"]
[Termination "McCarthyStone won by resignation"]

1. d4 {[%clk 0:02:55.4]} 1... d5 {[%clk 0:02:54.6]} 2. Nf3 {[%clk 0:02:54.9]}
2... Nf6 {[%clk 0:02:52.7]} 3. e3 {[%clk 0:02:54.6]} 3... Bg4 {[%clk 0:02:51.2]}
4. c4 {[%clk 0:02:54]} 4... b6 {[%clk 0:02:49.4]} 5. Nc3 {[%clk 0:02:50.9]} 5...
e6 {[%clk 0:02:48.9]} 6. Qa4+ {[%clk 0:02:43.8]} 6... Qd7 {[%clk 0:02:39.5]} 7.
Qxd7+ {[%clk 0:02:30.1]} 7... Nbxd7 {[%clk 0:02:40.4]} 8. Ne5 {[%clk 0:02:28.3]}
8... Bb4 {[%clk 0:02:33.1]} 9. Nxg4 {[%clk 0:02:21.3]} 9... Bxc3+ {[%clk
0:02:29.7]} 10. bxc3 {[%clk 0:02:21.2]} 10... Nxg4 {[%clk 0:02:30.2]} 11. cxd5
{[%clk 0:02:18.6]} 11... exd5 {[%clk 0:02:31.1]} 12. Bb5 {[%clk 0:02:17.4]}
12... Nf6 {[%clk 0:02:27.4]} 13. Ba3 {[%clk 0:02:08.4]} 13... O-O-O {[%clk
0:02:21.7]} 14. O-O {[%clk 0:01:58.2]} 14... Kb7 {[%clk 0:02:20.7]} 15. Be2
{[%clk 0:01:47]} 15... Ne4 {[%clk 0:02:20.4]} 16. Rfc1 {[%clk 0:01:45.5]} 16...
Nd2 {[%clk 0:02:02.8]} 17. c4 {[%clk 0:01:35.9]} 17... Nxc4 {[%clk 0:02:02.4]}
18. Bxc4 {[%clk 0:01:36.8]} 18... dxc4 {[%clk 0:02:03.3]} 19. Rxc4 {[%clk
0:01:37.2]} 19... Nf6 {[%clk 0:02:02.4]} 20. Be7 {[%clk 0:01:33.1]} 20... Rd7
{[%clk 0:02:01.1]} 21. Bxf6 {[%clk 0:01:33.3]} 21... gxf6 {[%clk 0:02:02]} 22.
a4 {[%clk 0:01:31.1]} 22... a5 {[%clk 0:02:01.2]} 23. Rb1 {[%clk 0:01:26.8]}
23... Rg8 {[%clk 0:01:56.9]} 24. g3 {[%clk 0:01:26.6]} 24... Rg5 {[%clk
0:01:55.5]} 25. h4 {[%clk 0:01:24.3]} 25... Rgd5 {[%clk 0:01:51.8]} 26. Kg2
{[%clk 0:01:20.1]} 26... c6 {[%clk 0:01:52]} 27. Rc5 {[%clk 0:01:09.6]} 27...
Kc7 {[%clk 0:01:27.9]} 28. Rxd5 {[%clk 0:01:09.6]} 28... Rxd5 {[%clk 0:01:27.9]}
29. Kf3 {[%clk 0:01:08.6]} 29... b5 {[%clk 0:01:23.1]} 30. axb5 {[%clk
0:01:05.7]} 30... Rxb5 {[%clk 0:01:21]} 31. Ra1 {[%clk 0:01:02.3]} 31... Kb6
{[%clk 0:01:20]} 32. Ke4 {[%clk 0:01:02.4]} 32... f5+ {[%clk 0:01:14.8]} 33. Kd3
{[%clk 0:01:01]} 33... Rb2 {[%clk 0:01:14.3]} 34. f3 {[%clk 0:01:00.4]} 34...
Kb5 {[%clk 0:01:11.6]} 35. Rg1 {[%clk 0:00:50.4]} 35... a4 {[%clk 0:01:04.4]}
36. e4 {[%clk 0:00:50.5]} 36... a3 {[%clk 0:00:59.7]} 37. Ra1 {[%clk 0:00:49.8]}
37... Kb4 {[%clk 0:00:54.2]} 38. d5 {[%clk 0:00:45.2]} 38... fxe4+ {[%clk
0:00:43]} 39. fxe4 {[%clk 0:00:46.1]} 39... Rb3+ {[%clk 0:00:38.2]} 40. Kd4
{[%clk 0:00:46.7]} 40... c5+ {[%clk 0:00:38.4]} 41. Ke5 {[%clk 0:00:46.6]} 41...
Rd3 {[%clk 0:00:38.4]} 42. d6 {[%clk 0:00:38.3]} 42... c4 {[%clk 0:00:37.7]} 43.
g4 {[%clk 0:00:35.9]} 43... Kb3 {[%clk 0:00:36.8]} 44. g5 {[%clk 0:00:24.8]}
44... Kb2 {[%clk 0:00:33.5]} 45. Re1 {[%clk 0:00:22.3]} 45... a2 {[%clk
0:00:32.5]} 46. h5 {[%clk 0:00:22.2]} 46... a1=Q {[%clk 0:00:32.5]} 47. Rxa1
{[%clk 0:00:22.9]} 47... Kxa1 {[%clk 0:00:33.4]} 48. g6 {[%clk 0:00:23]} 48...
hxg6 {[%clk 0:00:33.9]} 49. hxg6 {[%clk 0:00:23.9]} 49... fxg6 {[%clk
0:00:34.3]} 50. Ke6 {[%clk 0:00:23.5]} 50... c3 {[%clk 0:00:34.8]} 51. e5 {[%clk
0:00:23.2]} 51... c2 {[%clk 0:00:35.3]} 52. Kf7 {[%clk 0:00:23.4]} 52... c1=Q
{[%clk 0:00:34.5]} 53. e6 {[%clk 0:00:23.9]} 53... Qf4+ {[%clk 0:00:34.7]} 54.
Kxg6 {[%clk 0:00:23.9]} 54... Rxd6 {[%clk 0:00:33.5]} 0-1